fUST/lending_fUST_20250920
["ID","MTS","AMOUNT","RATE_DAILY","PERIOD"]
[386517295,1758334043155,-150.0,0.00023,2]
[386517296,1758334043177,-440.0255879,0.00023,2]
[386517297,1758334044594,203.32719964,0.000199,2]
[386517535,1758334240639,-351.06707241,0.00022885,10]
[386517536,1758334240692,-102.61638357,0.00022885,10]
[386517537,1758334240701,-59.9744121,0.00023,2]
[386517538,1758334240711,-500.0,0.00023,2]
[386517539,1758334240720,-218.03426629,0.00024996,2]
[386517540,1758334240730,-300.0,0.00024999,2]
[386517541,1758334240739,-300.0,0.00024999,2]
[386517542,1758334240748,-1200.0,0.00024999,2]
[386517543,1758334240757,-5605.74460827,0.00025,2]
[386517544,1758334240766,-250.48270129,0.0002513,2]
[386517545,1758334240776,-160.0,0.0002515,2]
[386517546,1758334240785,-160.0,0.0002515,2]
[386517547,1758334240795,-160.0,0.00025197,2]
[386517548,1758334240805,-848.13460282,0.00025202,2]
[386517549,1758334240814,-160.0,0.00025202,2]
[386517550,1758334240823,-229.004745,0.00025548,2]
[386517551,1758334240833,-500.0,0.00026384,2]
[386517552,1758334240842,-420.0,0.00027082,2]
[386517553,1758334240851,-160.0,0.00027312,2]
[386517554,1758334240861,-180.87632523,0.00027364,2]
[386517555,1758334240870,-500.0,0.00027393,2]
[386517556,1758334240879,-500.0,0.00027393,2]
[386517557,1758334240889,-419.40210225,0.00027393,2]
[386517558,1758334240899,-320.38013692,0.00027393,2]
[386517559,1758334240908,-500.0,0.00027393,2]
[386517560,1758334240917,-208.49729421,0.00027393,2]
[386517561,1758334240927,-276.84722044,0.00027393,2]
[386517562,1758334240938,-223.15277956,0.00027393,2]
[386517563,1758334240947,-150.53162925,0.00027393,2]
[386517578,1758334246701,-349.46837075,0.00027393,2]
[386517579,1758334246711,-500.0,0.00027393,2]
[386517580,1758334246720,-500.0,0.00027393,2]
[386517581,1758334246730,-233.43972884,0.00027393,2]
[386517582,1758334246739,-160.0,0.00027393,2]
[386517583,1758334246749,-503.73944618,0.00027395,2]
[386517584,1758334246758,-480.0,0.00027395,2]
[386517585,1758334246767,-484.23675237,0.00027395,2]
[386517586,1758334246776,-368.5411545,0.00027395,2]
[386517587,1758334246786,-487.47381607,0.00027395,2]
[386517588,1758334246795,-480.0,0.00027395,2]
[386517589,1758334246804,-497.32724169,0.00027396,2]
[386517590,1758334246813,-489.84570322,0.00027396,2]
[386517591,1758334246823,-480.0,0.00027396,2]
[386517592,1758334246832,-480.0,0.00027396,2]
[386517593,1758334246842,-480.0,0.00027396,2]
[386517594,1758334246968,-425.1275798,0.00027418,2]
[386517595,1758334246979,-500.0,0.00027448,2]
[386517596,1758334246989,-235.9782306,0.00027448,2]
[386517597,1758334246999,-483.47191164,0.00027453,2]
[386517598,1758334247009,-493.11067589,0.00027453,2]
[386517599,1758334247019,-492.51396203,0.00027453,2]
[386517600,1758334247028,-384.19360055,0.00027453,2]
[386517601,1758334247037,-480.0,0.00027453,2]
[386517602,1758334247060,-480.0,0.00027463,2]
[386517603,1758334247071,-492.89552317,0.00027463,2]
[386517604,1758334247080,-595.10581824,0.00027463,2]
[386517605,1758334247089,-480.0,0.00027463,2]
[386517606,1758334247099,-480.0,0.00027463,2]
[386517607,1758334247108,-480.0,0.00027463,2]
[386517608,1758334247117,-481.33350595,0.00027464,2]
[386517609,1758334247127,-191.88229947,0.00027464,2]
[386517610,1758334247136,-480.0,0.00027464,2]
[386517611,1758334247145,-486.79684931,0.00027464,2]
[386517612,1758334247155,-400.0,0.00027464,2]
[386517613,1758334247164,-487.32591716,0.00027464,2]
[386517614,1758334247173,-429.28256826,0.00027464,2]
[386517615,1758334247185,-50.71743174,0.00027464,2]
[386517616,1758334247195,-628.55625459,0.00027464,2]
[386517617,1758334247204,-501.15972678,0.00027464,2]
[386517618,1758334247215,-291.17558268,0.00027464,2]
[386517619,1758334247225,-500.02238422,0.00027464,2]
[386517620,1758334247234,-495.44463728,0.00027464,2]
[386517621,1758334247243,-494.70859731,0.00027464,2]
[386517622,1758334247253,-480.0,0.00027464,2]
[386517623,1758334247262,-492.08664638,0.00027464,2]
[386517624,1758334247272,-624.93,0.00027464,2]
[386517625,1758334247281,-494.44193057,0.00027464,2]
[386517626,1758334247290,-73.47238004,0.00027464,2]
[386517627,1758334247302,-429.26775256,0.00027464,2]
[386517628,1758334247311,-498.23304259,0.00027464,2]
[386517629,1758334247320,-145.31643049,0.00027464,2]
[386517630,1758334247335,-334.68356951,0.00027464,2]
[386517631,1758334247345,-480.0,0.00027464,2]
[386517632,1758334247354,-480.0,0.00027464,2]
[386517633,1758334247363,-480.0,0.00027464,2]
[386517634,1758334247372,-494.5613551,0.00027464,2]
[386517635,1758334247382,-171.56002608,0.0002752,16]
[386517636,1758334247391,-12.04412874,0.0002752,2]
[386517641,1758334438333,205.58337536,0.000199,2]
[386517643,1758334621328,205.58337535,0.000199,2]
[386517645,1758334998845,210.67191348,0.000199,2]
[386517657,1758335245143,-160.0,0.00025151,2]
[386517658,1758335245163,-28.39757315,0.00025156,2]
[386517659,1758335248103,-227.05467645,0.00025156,2]
[386517661,1758335322765,1395.33064872,0.00029353,120]
[386517663,1758335358150,-156.8,0.00021,5]
[386517666,1758335369673,208.77567916,0.000199,2]
[386517705,1758335432772,-26.7087203,0.00021,5]
[386517707,1758335432782,-379.93356692,0.00022099,2]
[386517709,1758335432791,-244.0,0.00022099,2]
[386517710,1758335432800,-217.66983378,0.00022099,2]
[386517764,1758335438854,-82.33016622,0.00022099,2]
[386517765,1758335438872,-591.0,0.00022099,2]
[386517766,1758335438882,-480.0,0.00022099,2]
[386517767,1758335438891,-162.33841783,0.00022099,2]
[386517768,1758335438900,-34476.54201707,0.000221,2]
[386517769,1758335438910,-156.10172528,0.00022372,2]
[386517770,1758335438919,-497.83423706,0.00022373,2]
[386517771,1758335438928,-592.82325124,0.00023,2]
[386517772,1758335438938,-2000.91290882,0.00024,2]
[386517773,1758335438948,-1709.19604547,0.00024,2]
[386517774,1758335438957,-1213.93691212,0.00024,7]
[386517775,1758335438966,-2867.89676582,0.00024012,2]
[386517776,1758335438976,-420.0,0.00024012,2]
[386517777,1758335438985,-302.9761377,0.00024658,2]
[386517778,1758335438995,-500.0,0.00024973,2]
[386517779,1758335439004,-500.0,0.00024973,2]
[386517780,1758335439013,-500.0,0.00024973,2]
[386517781,1758335439023,-500.0,0.00024973,2]
[386517782,1758335439033,-659.81,0.0002499,3]
[386517783,1758335439043,-876.20926801,0.00025,7]
[386517784,1758335439053,-10232.43273224,0.00025,2]
[386517785,1758335439062,-93677.44189298,0.00025,10]
[386517786,1758335439072,-30702.13442865,0.00025,2]
[386517787,1758335439081,-10364.0,0.00025,2]
[386517788,1758335439090,-209.21797886,0.00025,2]
[386517789,1758335439100,-361.17730404,0.00025,2]
[386517791,1758335439109,-904.07863855,0.00025,5]
[386517792,1758335439119,-150.0,0.00025,2]
[386517793,1758335439129,-3827.91595719,0.00025,2]
[386517794,1758335439138,-233.47853244,0.00025,10]
[386517795,1758335439148,-417.15472785,0.00025,10]
[386517796,1758335439157,-160.0,0.00025,10]
[386517797,1758335439166,-531.84256808,0.00025,10]
[386517798,1758335439176,-1032.0,0.00025205,2]
[386517799,1758335439186,-900.0,0.00025469,3]
[386517800,1758335439195,-513.16759771,0.00025521,2]
[386517801,1758335439204,-404.88703006,0.00025523,2]
[386517802,1758335439213,-417.15472785,0.000258,10]
[386517803,1758335439223,-160.0,0.000258,10]
[386517804,1758335439232,-531.84256808,0.000258,10]
[386517805,1758335439241,-233.47853244,0.000258,10]
[386517806,1758335439250,-1707.8941311,0.00026,30]
[386517807,1758335439259,-587.0,0.0002609,2]
[386517808,1758335439269,-4339.66,0.000261,7]
[386517809,1758335439279,-184.536543,0.0002615,2]
[386517810,1758335439289,-500.0,0.00026384,2]
[386517811,1758335439298,-782.7764732,0.00026491,2]
[386517812,1758335439307,-176.98359303,0.00026577,2]
[386517813,1758335439316,-3054.14087404,0.000269,2]
[386517814,1758335439326,-78686.9288877,0.0002699,2]
[386517815,1758335439335,-1882.89932696,0.0002699,2]
[386517816,1758335439344,-176.54813808,0.0002699,2]
[386517817,1758335439354,-585.3964936,0.00026994,2]
[386517818,1758335439363,-1170.7929872,0.00026994,2]
[386517819,1758335439372,-585.3964936,0.00026994,2]
[386517820,1758335439382,-585.3964936,0.00026994,2]
[386517822,1758335439391,-225.4924838,0.00026994,2]
[386517823,1758335439400,-96242.70818618,0.00027,2]
[386517824,1758335439410,-874.8767856,0.00027,14]
[386517825,1758335439419,-160.0,0.00027165,2]
[386517826,1758335439428,-160.0,0.00027178,2]
[386517827,1758335439438,-233.47853244,0.00027244,2]
[386517828,1758335439447,-218.03426629,0.00027244,2]
[386517829,1758335439458,-160.0,0.00027253,2]
[386517830,1758335439467,-531.84256808,0.00027323,2]
[386517831,1758335439476,-151.0,0.00027385,7]
[386517832,1758335439486,-151.0,0.00027385,7]
[386517833,1758335439495,-151.0,0.00027385,7]
[386517834,1758335439504,-151.0,0.00027385,7]
[386517835,1758335439513,-151.0,0.00027385,7]
[386517836,1758335439523,-151.0,0.00027385,7]
[386517837,1758335439532,-151.0,0.00027385,7]
[386517838,1758335439542,-151.0,0.00027385,7]
[386517839,1758335439551,-151.0,0.00027385,7]
[386517840,1758335439561,-151.0,0.00027385,7]
[386517841,1758335439570,-151.0,0.00027385,7]
[386517842,1758335439580,-151.0,0.00027385,7]
[386517843,1758335439589,-151.0,0.00027385,7]
[386517844,1758335439598,-151.0,0.00027385,7]
[386517845,1758335439608,-151.0,0.00027385,7]
[386517846,1758335439618,-151.0,0.00027385,7]
[386517847,1758335439627,-151.09423873,0.00027385,2]
[386517848,1758335439636,-78686.9288877,0.00027385,2]
[386517849,1758335439645,-1882.89932696,0.00027385,2]
[386517850,1758335439655,-228.1878684,0.00027395,2]
[386517851,1758335439664,-480.0,0.00027395,2]
[386517852,1758335439673,-480.0,0.00027395,2]
[386517853,1758335439682,-492.64345478,0.00027395,2]
[386517854,1758335439691,-480.0,0.00027395,2]
[386517856,1758335439701,-492.72931885,0.00027395,2]
[386517857,1758335439710,-480.0,0.00027395,2]
[386517858,1758335439719,-154.30136738,0.00027397,2]
[386517859,1758335439728,-16660.5771401,0.00027408,2]
[386517860,1758335439737,-522.97,0.00027423,2]
[386517861,1758335439746,-480.0,0.00027423,2]
[386517862,1758335439755,-480.0,0.00027423,2]
[386517863,1758335439764,-179.2279179,0.00027451,2]
[386517864,1758335439774,-490.25079657,0.00027462,2]
[386517865,1758335439783,-569.73864158,0.00027462,2]
[386517866,1758335439792,-480.0,0.00027462,2]
[386517867,1758335439802,-588.86484668,0.00027462,2]
[386517868,1758335439811,-480.0,0.00027462,2]
[386517869,1758335439820,-480.0,0.00027462,2]
[386517870,1758335439829,-600.06770766,0.00027463,2]
[386517871,1758335439838,-480.0,0.00027463,2]
[386517872,1758335439848,-480.0,0.00027463,2]
[386517873,1758335439857,-559.85377828,0.00027463,2]
[386517874,1758335439866,-480.0,0.00027463,2]
[386517875,1758335439875,-489.51899887,0.00027463,2]
[386517876,1758335439885,-480.0,0.00027463,2]
[386517877,1758335439894,-480.0,0.00027463,2]
[386517878,1758335439907,-480.0,0.00027463,2]
[386517879,1758335439916,-480.0,0.00027463,2]
[386517880,1758335439926,-480.0,0.00027463,2]
[386517881,1758335439935,-480.0,0.00027463,2]
[386517882,1758335439946,-480.0,0.00027463,2]
[386517883,1758335439955,-1066.88,0.00027463,2]
[386517884,1758335439964,-480.0,0.00027463,2]
[386517885,1758335439974,-480.0,0.00027463,2]
[386517886,1758335439984,-480.0,0.00027463,2]
[386517887,1758335439993,-480.0,0.00027464,2]
[386517889,1758335440003,-480.0,0.00027464,2]
[386517890,1758335440012,-480.0,0.00027464,2]
[386517891,1758335440023,-1619.54812025,0.00027473,2]
[386517892,1758335440032,-500.0,0.0002754,2]
[386517893,1758335440042,-160.0,0.00027587,2]
[386517894,1758335440052,-500.0,0.00027618,5]
[386517895,1758335440061,-500.0,0.00027618,5]
[386517896,1758335440070,-500.0,0.00027618,5]
[386517897,1758335440080,-501.3104949,0.00027618,5]
[386517898,1758335440091,-488.09455744,0.00027669,2]
[386517900,1758335440100,-480.0,0.00027669,2]
[386517901,1758335440109,-616.31,0.00027669,2]
[386517902,1758335440119,-480.0,0.00027669,2]
[386517904,1758335440128,-480.0,0.00027669,2]
[386517905,1758335440137,-480.0,0.00027669,2]
[386517906,1758335440146,-480.0,0.00027669,2]
[386517907,1758335440155,-229.10737068,0.00027669,2]
[386517908,1758335440164,-191.70049584,0.00027669,2]
[386517909,1758335440174,-504.89701972,0.00027669,2]
[386517911,1758335440183,-507.64710878,0.00027669,2]
[386517912,1758335440192,-494.00975507,0.00027669,2]
[386517913,1758335440201,-472.7138471,0.00027669,2]
[386517914,1758335440210,-512.53,0.00027669,2]
[386517915,1758335440219,-480.0,0.00027669,2]
[386517916,1758335440229,-480.0,0.00027669,2]
[386517918,1758335440239,-480.0,0.00027669,2]
[386517919,1758335440249,-480.0,0.00027669,2]
[386517920,1758335440258,-480.0,0.00027669,2]
[386517921,1758335440267,-609.53609839,0.00027669,2]
[386517922,1758335440277,-173.94343468,0.00027669,2]
[386517923,1758335440286,-480.0,0.00027669,2]
[386517925,1758335440296,-297.86334668,0.00027669,2]
[386517926,1758335440305,-289.09419764,0.00027669,2]
[386517927,1758335440314,-493.39280318,0.00027669,2]
[386517928,1758335440323,-492.48345588,0.00027669,2]
[386517929,1758335440334,-480.0,0.00027669,2]
[386517930,1758335440343,-480.0,0.00027669,2]
[386517931,1758335440352,-480.0,0.00027669,2]
[386517932,1758335440361,-485.7,0.00027669,2]
[386517933,1758335440370,-480.0,0.00027669,2]
[386517934,1758335440380,-480.0,0.00027669,2]
[386517935,1758335440389,-480.0,0.00027669,2]
[386517937,1758335440399,-480.0,0.00027669,2]
[386517939,1758335440408,-491.02879209,0.00027669,2]
[386517941,1758335440417,-480.0,0.00027669,2]
[386517943,1758335440427,-564.47274283,0.00027669,2]
[386517945,1758335440435,-480.0,0.00027669,2]
[386517947,1758335440445,-513.56439847,0.00027669,2]
[386517949,1758335440454,-502.11820812,0.00027669,2]
[386517951,1758335440463,-492.0763076,0.00027669,2]
[386517953,1758335440472,-182.894,0.00027697,17]
[386517955,1758335440482,-522.97,0.00027697,2]
[386517957,1758335440491,-480.0,0.00027697,2]
[386517959,1758335440500,-480.0,0.00027697,2]
[386517960,1758335440511,-493.50747714,0.00027736,2]
[386517962,1758335440520,-480.0,0.00027736,2]
[386517964,1758335440529,-378.35237562,0.00027736,2]
[386517966,1758335440538,-480.0,0.00027737,2]
[386517968,1758335440548,-480.0,0.00027737,2]
[386517970,1758335440558,-480.0,0.00027737,2]
[386517972,1758335440567,-460.70327552,0.00027737,2]
[386517974,1758335440575,-480.0,0.00027737,2]
[386517976,1758335440585,-402.01243387,0.00027737,2]
[386517978,1758335440595,-338.12,0.00027737,2]
[386517980,1758335440604,-480.0,0.00027737,2]
[386517982,1758335440613,-480.0,0.00027737,2]
[386517984,1758335440623,-1066.88,0.00027737,2]
[386517986,1758335440632,-183.2755121,0.00027737,2]
[386517988,1758335440642,-265.47488238,0.00027737,2]
[386517990,1758335440651,-467.98159879,0.00027737,2]
[386517992,1758335440660,-481.31010729,0.00027738,2]
[386517994,1758335440669,-480.0,0.00027738,2]
[386517996,1758335440678,-480.0,0.00027738,2]
[386517998,1758335440687,-150.0,0.00027753,5]
[386518000,1758335440696,-500.0,0.0002776,2]
[386518002,1758335440706,-480.0,0.00027799,2]
[386518004,1758335440715,-500.0,0.00027799,2]
[386518006,1758335440724,-151.0,0.00027819,7]
[386518008,1758335440733,-151.0,0.00027819,7]
[386518009,1758335440743,-151.0,0.00027819,7]
[386518011,1758335440752,-151.0,0.00027819,7]
[386518014,1758335440762,-152.276991,0.00027819,7]
[386518016,1758335440772,-151.0,0.00027819,7]
[386518018,1758335440781,-151.0,0.00027819,7]
[386518020,1758335440791,-151.0,0.00027819,7]
[386518022,1758335440801,-151.0,0.00027819,7]
[386518023,1758335440811,-151.0,0.00027819,7]
[386518026,1758335440822,-151.0,0.00027819,7]
[386518027,1758335440831,-151.0,0.00027819,7]
[386518029,1758335440841,-151.0,0.00027819,7]
[386518031,1758335440850,-151.0,0.00027819,7]
[386518033,1758335440860,-151.0,0.00027819,7]
[386518035,1758335440869,-151.0,0.00027819,7]
[386518037,1758335440879,-78686.9288877,0.00027819,2]
[386518039,1758335440888,-1882.89932696,0.00027819,2]
[386518041,1758335440897,-500.0,0.00027829,2]
[386518043,1758335440907,-713.43885766,0.00027833,2]
[386518045,1758335440916,-495.92132835,0.00027901,2]
[386518047,1758335440926,-480.0,0.00027901,2]
[386518049,1758335440935,-480.0,0.00027901,2]
[386518051,1758335440944,-480.0,0.00027901,2]
[386518053,1758335440954,-480.0,0.00027901,2]
[386518055,1758335440963,-480.0,0.00027901,2]
[386518057,1758335440972,-480.0,0.00027901,2]
[386518059,1758335440981,-363.59084779,0.00027901,2]
[386518061,1758335440991,-600.19453027,0.00027943,2]
[386518063,1758335441001,-480.0,0.00027943,2]
[386518065,1758335441010,-414.99090654,0.00027943,2]
[386518067,1758335441020,-480.0,0.00027943,2]
[386518069,1758335441029,-513.32186052,0.00027943,2]
[386518071,1758335441039,-271.95013644,0.00027943,2]
[386518073,1758335441048,-480.0,0.00027943,2]
[386518075,1758335441057,-179.45593197,0.00027943,2]
[386518077,1758335441066,-331.13400471,0.00027943,2]
[386518079,1758335441075,-367.45,0.00027943,2]
[386518081,1758335441085,-156.36573537,0.00027943,2]
[386518083,1758335441095,-575.82412327,0.00027943,2]
[386518085,1758335441104,-480.0,0.00027943,2]
[386518087,1758335441113,-173.61701143,0.00027943,2]
[386518089,1758335441123,-480.0,0.00027943,2]
[386518091,1758335441132,-522.97,0.00027971,2]
[386518093,1758335441141,-560.1636376,0.00027971,2]
[386518095,1758335441150,-480.0,0.00027971,2]
[386518097,1758335441160,-3605.87,0.00028,14]
[386518099,1758335441169,-666.18171763,0.00028,3]
[386518101,1758335441178,-213.0,0.00028,120]
[386518103,1758335441187,-1300.38217924,0.00028,2]
[386518105,1758335441196,-2166.17150233,0.00028,120]
[386518107,1758335441205,-165.04619946,0.00028,2]
[386518109,1758335441215,-4339.66,0.00028,7]
[386518111,1758335441224,-531.84256808,0.00028,7]
[386518113,1758335441233,-1110.08,0.00028,2]
[386518115,1758335441243,-480.0,0.0002801,2]
[386518117,1758335441252,-326.24,0.00028011,2]
[386518119,1758335441261,-480.0,0.00028011,2]
[386518121,1758335441271,-250.10088994,0.00028011,2]
[386518123,1758335441280,-480.0,0.00028011,2]
[386518125,1758335441289,-484.80157196,0.00028011,2]
[386518127,1758335441298,-480.0,0.00028011,2]
[386518129,1758335441307,-1066.88,0.00028011,2]
[386518131,1758335441316,-480.0,0.00028012,2]
[386518133,1758335441326,-480.0,0.00028012,2]
[386518134,1758335441335,-310.8442266,0.00028073,2]
[386518146,1758335441344,-3054.14087403,0.00028077,2]
[386518148,1758335441442,-260.0,0.00028135,2]
[386518149,1758335441452,-788.8414543,0.00028137,30]
[386518150,1758335441462,-1110.08,0.0002814,2]
[386518151,1758335441471,-576.25645242,0.00028166,5]
[386518152,1758335441480,-740.77258757,0.00028166,5]
[386518153,1758335441489,-501.65539122,0.00028166,5]
[386518154,1758335441498,-480.0,0.00028217,2]
[386518156,1758335441507,-480.0,0.00028217,2]
[386518158,1758335441516,-480.0,0.00028217,2]
[386518159,1758335441525,-480.0,0.00028217,2]
[386518160,1758335441534,-389.97,0.00028217,2]
[386518161,1758335441543,-608.29918753,0.00028222,2]
[386518162,1758335441554,-500.0,0.00028234,2]
[386518164,1758335441563,-522.97,0.00028245,2]
[386518165,1758335441572,-480.0,0.00028245,2]
[386518166,1758335441582,-2028.1,0.0002826,3]
[386518167,1758335441592,-150.143,0.00028266,2]
[386518168,1758335441601,-500.0,0.00028266,2]
[386518169,1758335441610,-150.0,0.00028267,2]
[386518170,1758335441619,-168.0,0.00028268,2]
[386518171,1758335441629,-480.0,0.00028284,2]
[386518172,1758335441638,-480.0,0.00028285,2]
[386518173,1758335441648,-480.0,0.00028285,2]
[386518174,1758335441657,-480.0,0.00028285,2]
[386518175,1758335441667,-1066.88,0.00028285,2]
[386518176,1758335441676,-151.30740363,0.00028286,2]
[386518177,1758335441685,-480.0,0.00028286,2]
[386518178,1758335441695,-250.0,0.00028301,5]
[386518179,1758335441704,-500.0,0.0002833,2]
[386518180,1758335441714,-340.0,0.00028348,2]
[386518181,1758335441724,-500.0,0.00028444,2]
[386518182,1758335441733,-500.0,0.00028453,2]
[386518183,1758335441742,-1060.64243138,0.00028468,2]
[386518184,1758335441751,-397.11131172,0.00028491,2]
[386518185,1758335441762,-480.0,0.00028491,2]
[386518186,1758335441771,-422.26880588,0.00028491,2]
[386518187,1758335441781,-480.0,0.00028491,2]
[386518188,1758335441791,-522.97,0.00028519,2]
[386518189,1758335441801,-480.0,0.00028519,2]
[386518190,1758335441811,-168.0,0.00028541,2]
[386518191,1758335441820,-480.0,0.00028558,2]
[386518192,1758335441830,-344.04253885,0.00028559,2]
[386518193,1758335441840,-268.277063,0.00028559,2]
[386518194,1758335441850,-221.37004794,0.00028559,2]
[386518195,1758335441860,-1066.88,0.00028559,2]
[386518196,1758335441869,-480.0,0.0002856,2]
[386518197,1758335441879,-500.0,0.00028576,7]
[386518198,1758335441889,-500.0,0.00028643,5]
[386518199,1758335441901,-78686.9288877,0.00028643,2]
[386518200,1758335441911,-1882.89932696,0.00028643,2]
[386518201,1758335441920,-151.0,0.00028644,7]
[386518203,1758335441930,-151.0,0.00028644,7]
[386518204,1758335441940,-151.0,0.00028644,7]
[386518205,1758335441951,-151.0,0.00028644,7]
[386518206,1758335441960,-151.0,0.00028644,7]
[386518207,1758335441969,-151.0,0.00028644,7]
[386518208,1758335441980,-151.0,0.00028644,7]
[386518209,1758335441989,-151.0,0.00028644,7]
[386518210,1758335441998,-151.0,0.00028644,7]
[386518211,1758335442008,-151.0,0.00028644,7]
[386518212,1758335442018,-151.0,0.00028644,7]
[386518213,1758335442027,-270.433387,0.00028644,7]
[386518214,1758335442037,-151.0,0.00028644,7]
[386518215,1758335442047,-151.0,0.00028644,7]
[386518216,1758335442057,-151.0,0.00028644,7]
[386518217,1758335442067,-168.0,0.00028653,2]
[386518218,1758335442076,-360.0,0.00028683,2]
[386518220,1758335442086,-184.0,0.00028693,2]
[386518221,1758335442095,-168.0,0.00028698,2]
[386518222,1758335442104,-977.0,0.00028714,2]
[386518223,1758335442114,-634.0,0.00028714,2]
[386518225,1758335442124,-2158.0,0.00028714,2]
[386518226,1758335442133,-410.0,0.00028714,2]
[386518227,1758335442143,-416.416,0.00028714,2]
[386518228,1758335442152,-251.1021764,0.00028765,2]
[386518229,1758335442162,-480.0,0.00028765,2]
[386518230,1758335442172,-500.0,0.00028787,2]
[386518232,1758335442181,-522.97,0.00028793,2]
[386518233,1758335442191,-480.0,0.00028793,2]
[386518234,1758335442200,-5258.57109753,0.00028794,22]
[386518235,1758335442209,-5000.0,0.00028794,16]
[386518236,1758335442219,-5000.0,0.00028794,19]
[386518237,1758335442228,-5000.0,0.00028794,20]
[386518238,1758335442237,-5000.0,0.00028794,20]
[386518239,1758335442247,-480.0,0.00028832,2]
[386518240,1758335442256,-1066.88,0.00028833,2]
[386518242,1758335442266,-433.74966117,0.00028834,2]
[386518243,1758335442275,-350.0,0.00028849,5]
[386518244,1758335442285,-500.0,0.00028901,2]
[386518245,1758335442295,-326.31,0.00028938,3]
[386518246,1758335442305,-163.15,0.00028938,3]
[386518247,1758335442314,-489.49,0.00028938,3]
[386518248,1758335442324,-500.0,0.00028948,2]
[386518249,1758335442334,-500.0,0.00028992,2]
[386518250,1758335442344,-500.0,0.00028996,2]
[386518251,1758335442353,-848.27550084,0.00029,10]
[386518252,1758335442362,-1000.37794239,0.00029,120]
[386518253,1758335442372,-878.30562794,0.00029,2]
[386518254,1758335442381,-3035.91393067,0.00029,60]
[386518255,1758335442390,-209.0,0.00029,2]
[386518256,1758335442400,-500.0,0.00029019,2]
[386518257,1758335442410,-480.0,0.00029039,2]
[386518258,1758335442419,-522.97,0.00029067,2]
[386518259,1758335442430,-480.0,0.00029067,2]
[386518260,1758335442439,-500.0,0.0002908,2]
[386518261,1758335442449,-170.27446901,0.00029087,2]
[386518262,1758335442459,-680.41677817,0.00029087,2]
[386518264,1758335442468,-379.67061718,0.00029087,2]
[386518265,1758335442478,-1517.16378624,0.00029087,2]
[386518266,1758335442487,-788.77603801,0.00029087,2]
[386518267,1758335442496,-375.42147946,0.00029091,2]
[386518268,1758335442506,-480.0,0.00029106,2]
[386518269,1758335442515,-1066.88,0.00029107,2]
[386518270,1758335442526,-500.0,0.00029124,2]
[386518271,1758335442535,-211.0,0.0002913,30]
[386518272,1758335442545,-78686.9288877,0.00029157,2]
[386518274,1758335442554,-1882.89932696,0.00029157,2]
[386518275,1758335442564,-153.16918,0.00029167,7]
[386518276,1758335442574,-151.0,0.00029167,7]
[386518277,1758335442583,-151.0,0.00029167,7]
[386518278,1758335442593,-151.0,0.00029167,7]
[386518279,1758335442603,-176.499852,0.00029167,7]
[386518280,1758335442612,-151.0,0.00029167,7]
[386518281,1758335442622,-151.0,0.00029167,7]
[386518282,1758335442631,-151.0,0.00029167,7]
[386518283,1758335442641,-151.0,0.00029167,7]
[386518284,1758335442650,-151.0,0.00029167,7]
[386518285,1758335442659,-293.966456,0.00029167,7]
[386518286,1758335442668,-151.0,0.00029167,7]
[386518287,1758335442677,-151.0,0.00029167,7]
[386518288,1758335442686,-191.96855,0.00029167,7]